bitfinex-derivatives/quotes_ETHF0:USTF0_20240924
["timestamp","ask_amount","ask_price","bid_price","bid_amount"]
[1727201008074,0.37713,2651.7,2651.6,3.58494]
[1727201008277,0.94274,2652.0,2651.2,3.2078]
[1727201008278,0.37715,2651.6,2651.2,3.2078]
[1727201008478,0.76785,2651.6,2651.2,3.2078]
[1727201008673,0.76785,2651.6,2651.5,0.37715]
[1727201008972,0.3907,2651.6,2651.5,0.37715]
[1727201009374,0.3907,2651.6,2651.4,0.37716]
[1727201009676,0.3907,2651.6,2651.2,3.2078]
[1727201009677,0.3907,2651.6,2651.5,0.37716]
[1727201010268,0.3907,2651.6,2651.5,3.02716]
[1727201010872,0.76784,2651.6,2651.5,2.65]
[1727201011073,0.3907,2651.6,2651.5,3.02716]
[1727201011478,4.55312,2652.1,2651.5,2.65]
[1727201011479,0.37712,2651.8,2651.5,2.65]
[1727201011677,0.37713,2651.7,2651.6,0.37714]
[1727201011870,0.37713,2651.7,2651.5,3.02715]
[1727201012065,0.37714,2651.6,2651.5,3.02715]
[1727201012672,0.37714,2651.6,2651.2,3.2078]
[1727201012979,0.94301,2651.2,2650.6,2.65]
[1727201013285,0.37724,2650.9,2650.7,0.37726]
[1727201013470,0.37724,2651.0,2650.8,0.37726]
[1727201013982,4.0191,2651.1,2650.9,0.37724]
[1727201014377,4.0191,2651.1,2650.6,0.3838]
[1727201014378,4.0191,2651.1,2650.6,3.6438]
[1727201014783,3.2078,2651.1,2651.0,0.37723]
[1727201015085,0.37719,2651.3,2651.0,0.37722]
[1727201015281,0.37719,2651.3,2651.0,0.75822]
[1727201015480,3.2078,2651.5,2651.0,0.381]
[1727201015681,3.2078,2651.8,2651.3,3.2078]
[1727201015884,0.37711,2651.9,2651.6,0.37714]
[1727201015885,0.79621,2651.9,2651.6,0.37714]
[1727201016188,0.37712,2651.8,2651.5,0.37715]
[1727201016785,0.37712,2651.8,2651.3,3.2078]
[1727201017082,0.37713,2651.8,2651.5,0.37715]
[1727201018586,0.4191,2651.9,2651.3,3.2078]
[1727201018587,0.37715,2651.6,2651.3,3.58498]
[1727201018789,0.4191,2651.9,2651.5,0.37715]
[1727201018790,3.2078,2651.8,2651.5,0.37715]
[1727201018979,0.37714,2651.7,2651.5,0.37715]
[1727201019188,0.37714,2651.7,2651.4,0.37716]
[1727201019687,0.37715,2651.6,2651.4,0.37716]
[1727201019880,3.2078,2651.8,2651.1,0.4041]
[1727201020080,3.2078,2651.8,2651.3,0.37718]
[1727201020081,0.37715,2651.6,2651.3,0.37718]
[1727201020680,0.37716,2651.5,2651.3,0.37718]
[1727201020988,0.37718,2651.4,2651.2,0.37719]
[1727201021289,0.37718,2651.4,2650.6,1.342]
[1727201021290,0.37722,2651.1,2650.6,1.342]
[1727201021481,0.37722,2651.1,2650.9,0.37724]
[1727201022082,3.58501,2651.2,2650.9,0.37724]
[1727201022392,3.2078,2651.2,2650.8,0.37725]
[1727201022585,0.37722,2651.1,2650.8,0.37725]
[1727201022792,0.37722,2651.1,2650.9,0.37724]
[1727201023089,0.37722,2651.1,2650.8,0.37725]
[1727201023283,0.37722,2651.1,2650.9,0.37724]
[1727201023790,3.2078,2651.2,2651.1,0.37722]
[1727201023983,0.7825,2651.3,2651.1,0.37722]
[1727201025382,0.37718,2651.4,2651.2,0.3772]
[1727201025589,0.37716,2651.5,2651.3,0.37718]
[1727201025795,0.37718,2651.4,2651.2,0.3772]
[1727201027182,0.37717,2651.5,2651.3,0.37718]
[1727201027699,0.37716,2651.5,2651.4,0.37717]
[1727201028090,0.37716,2651.6,2651.3,0.37717]
[1727201028288,4.6026113,2651.7,2651.3,0.37717]
[1727201028488,0.37716,2651.5,2651.3,0.37717]
[1727201028792,0.9807113,2651.6,2651.5,0.37716]
[1727201028992,0.79124,2651.7,2651.4,0.37716]
[1727201029197,0.9807113,2651.8,2651.3,0.94298]
[1727201029685,0.9807113,2651.8,2651.6,0.37713]
[1727201029888,0.37712,2651.8,2651.6,0.37713]
[1727201030083,1.3578313,2651.8,2651.6,0.37713]
[1727201030296,0.37713,2651.7,2651.5,0.37715]
[1727201030493,0.37712,2651.8,2651.6,0.37714]
[1727201030683,0.9807113,2651.9,2651.6,0.37714]
[1727201030886,0.37712,2651.8,2651.6,0.37714]
[1727201031099,0.37713,2651.7,2651.5,0.37715]
[1727201032391,1.3578413,2651.8,2651.5,0.37715]
[1727201033197,4.5656513,2651.7,2651.5,0.37715]
[1727201033504,1.3578513,2651.7,2651.5,0.37715]
[1727201034202,1.3578513,2651.7,2651.6,0.37714]
[1727201034693,0.9807113,2651.7,2651.6,0.37714]
[1727201035488,0.37713,2651.8,2651.6,0.37714]
[1727201035789,0.98661599,2651.7,2651.6,0.37714]
[1727201036405,1.36374599,2651.7,2651.5,0.37715]
[1727201036702,1.36374599,2651.7,2651.3,2.65]
[1727201036703,0.37713,2651.7,2651.6,0.37714]
[1727201036887,1.97013888,2651.8,2651.5,0.37716]
[1727201037091,0.37714,2651.7,2651.5,0.37716]
[1727201037698,0.37714,2651.7,2651.3,2.65]
[1727201037699,1.97013888,2651.7,2651.3,2.65]
[1727201037891,0.37713,2651.7,2651.5,0.37716]
[1727201038095,0.94278,2651.9,2651.1,1.76463]
[1727201038096,0.3772,2651.2,2651.1,0.4149]
[1727201038290,0.3772,2651.2,2651.1,0.79212]
[1727201039695,0.94301,2651.2,2650.8,2.65]
[1727201040001,0.37724,2651.0,2650.8,0.37725]
[1727201040303,0.4081,2650.9,2650.7,0.37727]
[1727201040505,0.4081,2650.9,2650.6,0.4201]
[1727201040696,0.4081,2650.9,2650.8,0.37726]
[1727201040896,2.38533888,2651.1,2650.8,2.65]
[1727201041102,1.97013888,2651.1,2651.0,0.37723]
[1727201042100,2.34735888,2651.1,2650.9,0.37724]
[1727201042305,1.97013888,2651.1,2651.0,0.37723]
[1727201042904,2.37823888,2651.2,2651.0,2.65]
[1727201043092,0.4081,2651.2,2651.1,0.37722]
[1727201043505,0.4081,2651.2,2651.0,3.02722]
[1727201043804,0.4081,2651.2,2651.1,0.37722]
[1727201044489,0.4081,2651.2,2651.0,2.65]
[1727201044693,0.4081,2651.2,2651.0,0.37722]
[1727201045291,0.4081,2651.2,2650.8,2.65]
[1727201045605,0.98751502,2651.0,2650.9,0.37724]
[1727201045902,0.78531,2651.2,2650.6,3.6279]
[1727201045903,3.0581,2651.2,2650.6,3.6279]
[1727201046204,3.0581,2651.2,2650.5,0.3809]
[1727201046205,1.36485877,2650.8,2650.5,0.37729]
[1727201046401,4.0373,2650.9,2650.5,0.37729]
[1727201046402,1.77097877,2650.7,2650.5,0.37729]
[1727201046597,1.39369877,2650.7,2650.5,0.37729]
[1727201047402,1.39369877,2650.7,2650.6,0.37729]
[1727201048104,0.98759877,2650.7,2650.6,0.37729]
[1727201048295,1.97013888,2651.1,2650.7,0.37727]
[1727201048296,0.78333,2651.0,2650.7,0.37727]
[1727201048499,0.78333,2651.0,2650.6,0.37729]
[1727201048500,1.85808861,2650.9,2650.6,0.37729]
[1727201048701,0.98733961,2650.7,2650.6,0.37729]
[1727201049299,0.98733961,2650.8,2650.7,0.37727]
[1727201049802,0.14814961,2650.8,2650.7,6.80007]
[1727201050105,1.48083861,2651.5,2651.4,0.37717]
[1727201050405,2.35103888,2651.8,2651.7,0.37713]
[1727201050406,1.48083861,2651.8,2651.7,0.37713]
[1727201050601,1.97013888,2652.0,2651.7,0.37713]
[1727201050602,1.48083861,2652.0,2651.9,0.3771]
[1727201051104,3.2078,2652.3,2652.2,0.37706]
[1727201051305,1.48083861,2652.6,2652.2,6.4204]
[1727201051606,1.48083861,2652.7,2652.6,0.377]
[1727201051811,5.66921667,2653.2,2652.5,5.8578]
[1727201051812,1.48083861,2652.9,2652.5,5.8578]
[1727201052003,1.48083861,2652.9,2652.8,3.02697]
[1727201052196,1.97013888,2653.2,2652.8,3.02697]
[1727201052197,1.48083861,2653.1,2652.8,3.02697]
[1727201052398,1.48083861,2653.1,2652.8,0.37697]
[1727201052602,1.48083861,2653.1,2652.7,0.37698]
[1727201053198,5.06555861,2653.2,2652.7,0.37698]
[1727201053509,5.06555861,2653.2,2652.5,3.2078]
[1727201053510,4.68863861,2653.2,2652.5,3.2078]
[1727201053702,4.68863861,2653.2,2652.3,0.37704]
[1727201053703,1.48083861,2653.0,2652.3,0.37704]
[1727201053902,0.3949,2653.1,2652.3,0.37705]
[1727201053903,0.37698,2652.8,2652.3,0.37705]
[1727201054104,0.7686,2652.7,2652.2,3.58485]
[1727201054603,0.3916,2652.7,2652.3,0.37704]
[1727201055109,0.3916,2652.7,2652.2,3.2078]
[1727201056005,0.37696,2652.9,2652.5,3.2078]
[1727201056205,0.80295,2653.0,2652.5,3.58481]
[1727201056411,0.37697,2652.9,2652.5,3.58481]
[1727201056605,0.426,2653.0,2652.7,0.37698]
[1727201056804,0.80295,2653.0,2652.6,0.377]
[1727201057408,0.37697,2652.9,2652.5,3.58481]
[1727201057714,0.426,2653.0,2652.6,0.377]
[1727201057715,0.80295,2653.0,2652.6,0.377]
[1727201058101,0.37696,2652.9,2652.6,0.377]
[1727201058507,1.97013888,2652.7,2652.6,0.377]
[1727201058999,1.96742599,2652.7,2652.6,0.377]
[1727201061014,1.96742599,2652.7,2652.5,3.2078]
[1727201061313,1.96742599,2652.7,2652.6,0.377]
[1727201061904,1.96742599,2652.7,2652.5,3.2078]
[1727201062105,0.37701,2652.6,2652.2,0.37705]
[1727201062311,1.96742599,2652.7,2652.1,3.2078]
[1727201062511,1.96742599,2652.7,2652.2,0.37706]
[1727201062512,0.37702,2652.5,2652.2,0.37706]
[1727201062713,0.37701,2652.6,2652.3,0.37704]
[1727201063205,0.37702,2652.5,2652.3,0.37704]
[1727201063410,0.37701,2652.6,2652.3,0.37704]
[1727201063723,2.34443599,2652.6,2652.3,0.37704]
[1727201064013,0.37704,2652.4,2652.1,0.37707]
[1727201064212,0.4217,2652.5,2652.0,0.397]
[1727201064516,1.96742599,2652.6,2652.4,0.37703]
[1727201065028,1.96742599,2652.6,2652.1,3.2078]
[1727201065313,1.96742599,2652.6,2652.5,0.37702]
[1727201065711,0.37697,2652.9,2652.6,0.37699]
[1727201066914,3.2078,2653.1,2652.4,0.428]
[1727201067116,3.2078,2653.1,2652.6,3.26]
[1727201067418,0.80295,2653.0,2652.7,0.37698]
[1727201068518,0.80295,2653.0,2652.4,3.2078]
[1727201068519,0.426,2653.0,2652.4,3.2078]
[1727201068718,0.37702,2652.8,2652.5,0.37704]
[1727201068916,3.2078,2652.9,2652.7,0.37702]
[1727201071220,3.2078,2652.9,2652.3,4.2027]
[1727201071419,3.2078,2652.9,2652.7,0.37702]
[1727201071817,3.2078,2652.9,2652.8,0.37701]
[1727201072020,3.2078,2652.9,2652.7,0.37702]
[1727201072220,3.2078,2652.9,2652.7,0.37698]
[1727201073329,3.2078,2652.9,2652.3,3.26]
[1727201073330,3.58477,2652.9,2652.6,0.37699]
[1727201073520,3.58477,2652.9,2652.3,3.26]
[1727201074217,3.58477,2652.9,2652.6,0.37699]
[1727201074519,3.58477,2652.9,2652.7,0.37699]
[1727201075120,3.58477,2652.9,2652.6,2.65]
[1727201075121,4.14659,2652.8,2652.6,0.377]
[1727201075422,2.34142857,2652.8,2652.6,0.377]
[1727201075613,5.54920857,2652.9,2652.7,0.37699]
[1727201076116,0.37697,2652.8,2652.7,0.37699]
[1727201076324,5.54920857,2652.9,2652.7,0.37699]
[1727201076522,1.47315988,2652.8,2652.7,0.37699]
[1727201076818,1.85012988,2652.8,2652.7,0.37699]
[1727201078422,5.17223857,2652.9,2652.5,3.027]
[1727201078616,5.17223857,2652.9,2650.8,20.20624987]
[1727201078617,0.94262,2652.4,2651.7,0.37712]
[1727201078824,0.37715,2651.6,2651.4,0.37716]
[1727201079016,4.68117784,2651.9,2651.3,4.0241]
[1727201079221,0.37715,2651.6,2651.4,0.37717]
[1727201079523,0.37715,2651.6,2651.3,1.19348]
[1727201079819,1.85050784,2651.8,2651.5,0.37715]
[1727201080022,1.85050784,2651.8,2651.3,0.8163]
[1727201080217,1.85049784,2651.8,2651.6,0.37714]
[1727201080417,1.85049784,2651.8,2651.5,0.37715]
[1727201080717,0.37713,2651.7,2651.4,0.37716]
[1727201080913,1.47337784,2651.8,2651.5,0.37716]
[1727201080914,1.85049784,2651.8,2651.5,0.37716]
[1727201081312,1.85049784,2651.8,2651.5,0.37715]
[1727201081626,5.45398784,2651.9,2651.6,0.37714]
[1727201081829,5.07687784,2651.9,2651.6,0.37714]
[1727201082021,3.2078,2651.9,2651.6,0.37714]
[1727201082216,3.58491,2651.9,2651.3,4.0763]
[1727201082519,3.2078,2651.9,2651.7,0.37712]
[1727201082920,0.37708,2652.1,2651.8,0.37712]
[1727201083124,0.37708,2652.1,2651.7,0.37712]
[1727201083422,4.4576,2652.3,2651.6,3.26]
[1727201083626,3.6253,2652.3,2651.9,3.26]
[1727201083829,3.2078,2652.3,2652.1,0.37706]
[1727201084125,0.37702,2652.5,2652.2,0.37706]
[1727201084314,0.74591,2652.6,2652.2,0.37706]
[1727201084520,3.2078,2652.5,2652.1,0.37707]
[1727201084724,3.58483,2652.5,2652.1,0.37707]
[1727201085832,0.37703,2652.4,2652.0,1.16778]
[1727201086128,0.37703,2652.4,2652.1,0.37707]
[1727201086829,0.37705,2652.3,2652.1,0.37707]
[1727201087025,0.37704,2652.4,2652.1,0.37707]
[1727201087918,0.37706,2652.2,2652.0,1.16777]
[1727201088124,3.2078,2652.1,2651.5,7.3458]
[1727201088321,0.3796,2652.0,2651.5,4.4668]
[1727201088526,0.37711,2651.9,2651.7,0.37712]
[1727201088734,0.37712,2651.8,2651.6,0.37714]
[1727201089232,0.3796,2652.0,2651.6,0.37714]
[1727201089432,0.37711,2651.9,2651.7,0.37712]
[1727201089933,0.37711,2651.9,2651.8,0.37712]
[1727201090124,0.37711,2651.9,2651.7,0.37712]
[1727201090523,0.37712,2651.8,2651.5,1.259]
[1727201090731,0.37712,2651.8,2651.6,0.37714]
[1727201091231,1.47337784,2651.9,2651.8,0.37712]
[1727201091428,2.23006784,2652.0,2651.8,0.37712]
[1727201092226,1.47337784,2651.9,2651.8,0.37712]
[1727201092423,1.85047784,2651.9,2651.8,0.37712]
[1727201093024,1.47337784,2651.9,2651.8,0.37712]
[1727201093226,1.47712049,2651.9,2651.8,0.37712]
[1727201093534,1.85422049,2651.9,2651.8,0.37712]
[1727201094032,0.3771,2651.9,2651.8,0.37712]
[1727201095423,0.37712,2651.8,2651.7,0.37712]
[1727201095822,0.37712,2651.8,2651.5,4.4668]
[1727201095823,2.34161378,2651.9,2651.8,0.37712]
[1727201096431,2.34161378,2651.9,2651.5,4.4668]
[1727201096432,2.34410378,2652.0,2651.9,0.3771]
[1727201096632,2.35200615,2652.0,2651.6,0.4]
[1727201096832,2.35200615,2652.0,2651.9,0.3771]
[1727201097020,1.97240615,2652.0,2651.9,0.3771]
[1727201097540,1.97240615,2652.0,2651.9,4.1483]
[1727201097929,0.37708,2652.1,2651.9,4.1483]
[1727201098131,2.42194018,2652.2,2651.8,0.37711]
[1727201098432,0.3771,2652.0,2651.9,0.3771]
[1727201099434,0.37708,2652.1,2652.0,0.37708]
[1727201100427,1.47927018,2652.2,2652.1,0.37707]
[1727201100626,0.37709,2652.1,2652.0,0.37708]
[1727201100827,0.37709,2652.0,2651.9,0.37709]
[1727201101237,0.37712,2651.8,2651.7,0.37712]
[1727201101431,3.2078,2652.0,2651.5,4.4668]
[1727201101629,0.37712,2651.8,2651.7,0.37712]
[1727201102331,0.37714,2651.7,2651.6,0.37714]
[1727201102534,0.37713,2651.8,2651.7,0.37713]
[1727201103039,0.94286,2651.7,2651.1,4.17333987]
[1727201103238,0.37718,2651.4,2651.3,0.37718]
[1727201103432,0.37719,2651.3,2651.2,0.37719]
[1727201103632,0.37718,2651.4,2651.3,0.37719]
[1727201103828,0.37717,2651.5,2651.3,0.37719]
[1727201104033,0.37717,2651.4,2651.3,0.37719]
[1727201104233,0.37717,2651.5,2651.3,0.37719]
[1727201104533,3.2078,2651.6,2651.2,0.37719]
[1727201104735,0.37718,2651.4,2651.3,0.37719]
[1727201105043,0.37717,2651.5,2651.3,0.37719]
[1727201105443,0.37717,2651.5,2651.4,0.37717]
[1727201105639,0.37717,2651.5,2651.2,2.65]
[1727201106147,0.37718,2651.4,2651.3,0.37718]
[1727201106641,0.37718,2651.4,2651.2,3.0272]
[1727201106851,0.37719,2651.3,2651.1,3.2078]
[1727201107045,0.37719,2651.3,2651.0,0.7771]
[1727201107046,0.37721,2651.2,2651.0,1.15432]
[1727201107243,0.37721,2651.2,2651.0,0.75542]
[1727201107434,0.3711,2651.1,2651.0,0.75542]
[1727201107636,0.3711,2651.1,2650.9,0.37724]
[1727201107837,0.37726,2650.8,2650.6,4.84408]
[1727201108439,0.37726,2650.8,2650.6,4.4668]
[1727201108637,0.94308,2651.0,2650.6,3.2078]
[1727201108845,0.37727,2650.7,2650.6,3.2078]
[1727201109145,0.3715,2650.9,2650.3,3.0321]
[1727201109343,0.37727,2650.8,2650.5,0.37729]
[1727201109738,0.37728,2650.7,2650.5,0.37729]
[1727201109933,0.37729,2650.6,2650.4,0.37731]
[1727201110139,0.37728,2650.7,2650.5,0.37729]
[1727201110437,0.37728,2650.7,2650.4,0.37731]
[1727201110852,0.3715,2650.9,2650.6,2.65]
[1727201111048,0.3711,2651.1,2650.8,2.65]
[1727201111247,0.37724,2651.0,2650.8,2.65]
[1727201111445,0.74832,2651.1,2650.8,3.02726]
[1727201111640,0.37723,2651.0,2650.8,3.02726]
[1727201111834,0.37723,2651.0,2650.8,2.65]
[1727201112348,0.3711,2651.1,2650.6,0.37728]
[1727201112645,0.37724,2650.9,2650.6,0.37728]
[1727201113147,0.37724,2650.9,2650.7,0.37727]
[1727201114047,3.58504,2651.0,2650.8,0.37725]
[1727201114440,0.37724,2650.9,2650.7,0.37726]
[1727201115351,3.58503,2651.0,2650.8,0.37725]
[1727201115642,3.2078,2651.0,2650.7,2.65]
[1727201115849,3.2078,2651.0,2650.8,0.37726]
[1727201116040,3.58503,2651.0,2650.7,3.02726]
[1727201116235,3.58503,2651.0,2650.8,0.37726]
[1727201116442,3.2078,2651.0,2650.9,0.37724]
[1727201117438,4.68707018,2651.4,2651.2,0.37719]
[1727201117641,3.2078,2651.4,2651.1,3.02721]
[1727201117843,0.37719,2651.3,2651.1,3.02721]
[1727201118366,0.3633,2651.5,2651.1,2.65]
[1727201118367,0.3772,2651.2,2651.1,2.65]
[1727201118547,0.3772,2651.2,2651.0,0.3862]
[1727201118851,0.37721,2651.2,2651.0,0.76343]
[1727201119441,0.7718,2651.3,2651.1,0.37722]
[1727201119647,0.3772,2651.3,2651.1,0.3772]
[1727201121049,0.3772,2651.2,2651.0,0.76342]
[1727201121249,0.37719,2651.3,2651.0,0.3862]
[1727201121746,0.3772,2651.2,2651.1,0.3772]
[1727201121952,0.3772,2651.2,2651.0,0.76342]
[1727201122451,3.2078,2651.4,2651.1,0.37721]
[1727201122452,0.37719,2651.3,2651.1,0.37721]
[1727201122850,0.3772,2651.2,2651.1,0.37721]
[1727201123449,0.37719,2651.3,2651.2,0.3772]
[1727201124148,4.14919,2651.3,2651.2,0.3772]
[1727201124445,4.14919,2651.3,2651.1,0.37721]
[1727201124446,0.3772,2651.2,2651.1,0.37721]
[1727201125250,0.37719,2651.3,2651.2,0.3772]
[1727201126945,4.14919,2651.3,2651.2,0.3772]
[1727201127347,0.3772,2651.2,2651.1,0.37721]
[1727201127544,5.63004018,2651.4,2650.9,3.2078]
[1727201127751,0.37723,2651.0,2650.9,3.2078]
[1727201128256,2.42226018,2651.3,2650.9,3.2078]
[1727201128551,0.37723,2651.0,2650.9,3.58504]
[1727201129149,0.37723,2651.1,2651.0,0.37723]
[1727201129355,0.37723,2651.0,2650.9,3.58504]
[1727201129553,0.94299,2651.3,2650.9,3.2078]
[1727201129753,0.37722,2651.1,2651.0,0.37722]
[1727201129953,0.37718,2651.4,2651.3,0.37719]
[1727201130871,0.37719,2651.3,2651.2,0.37719]
[1727201131158,0.37718,2651.4,2651.2,0.37719]
[1727201131347,5.05037018,2651.5,2651.3,0.37719]
[1727201131348,1.84257018,2651.5,2651.3,0.37719]
[1727201131659,0.74047,2651.5,2651.3,0.37719]
[1727201132356,0.37717,2651.4,2651.3,0.76119]
[1727201132555,0.37717,2651.4,2651.3,0.384]
[1727201132956,0.37719,2651.3,2651.2,0.379]
[1727201133357,0.37719,2651.3,2651.0,0.76123]
[1727201133358,0.37719,2651.3,2651.1,0.37721]
[1727201133556,5.63002018,2651.4,2651.0,0.76123]
[1727201133557,4.15075,2651.4,2651.0,0.76123]
[1727201133757,0.37722,2651.1,2651.0,0.76123]
[1727201133954,0.94299,2651.3,2651.0,0.76122]
[1727201134151,0.37722,2651.1,2651.0,0.76122]
[1727201134358,0.37721,2651.2,2651.1,0.37722]
[1727201134553,0.94299,2651.3,2651.0,0.76122]
[1727201134554,0.37722,2651.1,2651.0,0.76122]
[1727201134756,0.37721,2651.2,2651.1,0.37721]
[1727201135255,0.37722,2651.1,2651.0,0.76122]
[1727201136056,0.37722,2651.1,2651.0,0.37722]
[1727201137463,0.37723,2651.0,2650.9,0.37724]
[1727201137763,0.37724,2650.9,2650.8,0.75685]
[1727201138160,0.37724,2650.9,2650.8,0.3796]
[1727201138368,0.94312,2650.9,2650.6,0.37728]
[1727201138568,0.3773,2650.6,2650.5,0.37729]
[1727201139067,0.3773,2650.5,2650.4,1.15921]
[1727201139555,0.3773,2650.5,2650.4,0.76011]
[1727201139756,0.3935,2650.7,2650.2,5.7921]
[1727201140066,0.3773,2650.5,2650.4,0.37731]
[1727201140766,0.7528,2650.5,2650.4,0.37731]
[1727201141662,0.37732,2650.4,2650.3,0.37732]
[1727201141870,0.75281,2650.5,2650.3,0.37732]
[1727201142061,0.75281,2650.5,2650.4,0.37732]
[1727201142655,0.37732,2650.4,2650.3,0.37732]
[1727201142857,0.75281,2650.5,2650.4,0.37732]
[1727201145154,0.3755,2650.5,2650.4,0.37732]
[1727201145371,0.7528,2650.5,2650.4,0.37732]
[1727201146263,0.7528,2650.5,2650.1,3.2078]
[1727201146264,0.37734,2650.3,2650.1,3.2078]
[1727201146462,0.37734,2650.2,2650.1,3.6074]
[1727201146655,0.37734,2650.2,2650.1,0.3996]
[1727201147160,0.37734,2650.2,2650.1,0.77696]
[1727201147364,0.37734,2650.2,2650.1,0.3996]
[1727201148375,0.37734,2650.2,2650.1,0.77696]
[1727201151774,5.43988018,2650.5,2650.4,0.37732]
[1727201151971,0.75281,2650.5,2650.4,0.37732]
[1727201152271,4.52561,2650.5,2650.4,0.37732]
[1727201152468,4.1483,2650.5,2650.4,0.37732]
[1727201153063,4.5256,2650.5,2650.4,0.37732]
[1727201153272,4.1483,2650.5,2650.4,0.37732]
[1727201153674,4.52561,2650.5,2650.1,1.36513987]
[1727201153875,0.75281,2650.5,2650.1,1.36513987]
[1727201154573,0.75281,2650.5,2650.3,0.37732]
[1727201155472,0.3755,2650.5,2650.4,0.37732]
[1727201155672,0.7528,2650.5,2650.4,0.37732]
[1727201155865,4.1483,2650.5,2650.4,0.37732]
[1727201156268,4.52561,2650.5,2650.1,1.36513987]
[1727201156469,0.75281,2650.5,2650.3,0.37732]
[1727201156669,0.3755,2650.5,2650.4,0.37732]
[1727201156868,0.7528,2650.5,2650.4,0.37732]
[1727201157070,4.5256,2650.5,2650.4,0.37732]
[1727201157773,1.47927018,2650.6,2650.5,0.3773]
[1727201157979,1.47927018,2650.7,2650.6,0.37729]
[1727201158182,1.47927018,2650.7,2650.6,0.73899]
[1727201158371,0.37727,2650.7,2650.6,0.73899]
[1727201158568,0.37727,2650.7,2650.6,0.3617]
[1727201159078,1.85654018,2650.7,2650.6,0.3617]
[1727201159373,1.85654018,2650.8,2650.6,0.3617]
[1727201159579,1.85654018,2650.8,2650.7,0.37727]
[1727201159773,0.37727,2650.7,2650.6,0.73898]
[1727201160376,1.48138978,2650.8,2650.7,0.37727]
[1727201160576,1.48138978,2651.1,2650.7,0.94319]
[1727201160889,1.48138978,2651.2,2651.1,0.37722]
[1727201161482,1.48138978,2651.3,2651.2,0.3772]
[1727201161736,3.39838206,2651.8,2651.2,0.3772]
[1727201161737,0.27778978,2651.5,2651.4,0.37717]
[1727201161879,3.2078,2652.0,2651.9,0.3771]
[1727201162074,3.2078,2652.0,2651.9,6.7983]
[1727201165080,0.77542,2652.5,2651.9,6.7983]
[1727201165081,3.2078,2652.3,2652.2,0.37706]
[1727201165383,0.3897,2652.6,2652.4,3.02703]
[1727201165581,0.3897,2652.6,2652.4,2.65]
[1727201165779,0.3897,2652.6,2652.2,0.37705]
[1727201165780,0.76671,2652.6,2652.2,0.37705]
[1727201165977,3.2078,2652.8,2652.3,2.65]
[1727201166185,0.37699,2652.7,2652.3,3.02704]
[1727201166373,3.58478,2652.8,2652.3,3.02704]
[1727201166779,3.58478,2652.8,2652.4,0.37703]
[1727201167583,3.58479,2652.8,2652.4,0.37702]
[1727201167790,3.2078,2652.8,2652.4,0.37702]
[1727201167989,3.2078,2652.8,2652.3,2.65]
[1727201168675,0.37699,2652.7,2652.4,0.37702]
[1727201168987,0.37699,2652.7,2652.4,0.37703]
[1727201169289,0.37701,2652.6,2652.3,3.39154]
[1727201169874,0.37701,2652.6,2652.3,0.74154]
[1727201170383,3.2078,2652.8,2652.3,0.74154]
[1727201170585,3.2078,2652.8,2652.2,3.58485]
[1727201170900,0.37702,2652.5,2652.3,0.37704]
[1727201171081,4.15026,2652.8,2652.2,3.58485]
[1727201171388,0.37707,2652.2,2652.0,0.37709]
[1727201172088,0.37707,2652.1,2651.9,1.58009]
[1727201172287,0.37707,2652.1,2651.9,1.203]
[1727201172482,0.37707,2652.1,2651.9,1.5801]
[1727201172678,0.37707,2652.2,2652.0,0.37708]
[1727201172985,0.37707,2652.1,2652.0,0.37708]
[1727201173290,3.2078,2652.3,2651.9,1.203]
[1727201173494,0.37709,2652.0,2651.9,1.203]
[1727201173678,0.94275,2652.2,2651.8,4.51515]
[1727201173877,3.58494,2651.9,2651.8,4.138]
[1727201174082,0.94286,2651.9,2651.5,1.203]
[1727201174282,0.37718,2651.6,2651.5,1.203]
[1727201174479,0.37718,2651.7,2651.4,0.37721]
[1727201174684,1.1919,2651.8,2651.2,7.4588]
[1727201174879,3.58498,2651.7,2651.5,2.65]
[1727201175388,0.37718,2651.6,2651.5,2.65]
[1727201175592,3.2078,2651.7,2651.3,2.65]
[1727201175807,3.2078,2651.7,2651.3,3.02722]
[1727201175808,0.37719,2651.6,2651.3,3.02722]
[1727201176293,0.37718,2651.6,2651.3,2.65]
[1727201176594,3.2078,2651.7,2651.6,0.37718]
[1727201176790,0.3999,2651.8,2651.6,0.37718]
[1727201176992,0.3999,2651.8,2651.7,0.37717]
[1727201177193,0.3999,2651.8,2651.6,0.37718]
[1727201178485,3.2078,2651.7,2651.3,3.02722]
[1727201178794,0.37719,2651.6,2651.3,3.02722]
[1727201179099,6.80084,2651.4,2650.7,0.088]
[1727201179394,6.80084,2651.4,2650.6,4.138]
[1727201179395,3.2078,2651.0,2650.6,0.37732]
[1727201179596,0.3773,2650.8,2650.5,0.37733]
[1727201180289,0.3823,2650.9,2650.6,0.37732]
[1727201180688,0.3823,2650.9,2650.3,3.2078]
[1727201180889,3.58511,2650.7,2650.4,0.37734]
[1727201181201,3.58511,2650.7,2650.4,0.37735]
[1727201181386,3.58511,2650.7,2650.5,0.37733]
[1727201181588,3.58511,2650.7,2650.3,3.2078]
[1727201181589,0.37733,2650.6,2650.4,0.37734]
[1727201181799,0.37733,2650.6,2650.3,3.58516]
[1727201181993,0.37733,2650.6,2649.8,0.37743]
[1727201181994,0.3774,2650.1,2649.8,0.37743]
[1727201182196,0.37743,2649.9,2649.6,0.37747]
[1727201182396,0.37745,2649.8,2649.5,0.37747]
[1727201182602,3.58523,2649.9,2649.6,0.37746]